Cogmind - Beta 12 @@@ ROGUE MODE // 2023.03.23 @ 18:43:20 Player: Mr Goldstein Result: Destroyed by G-34 Mercenary with Small Laser Performance ------------- Evolutions (0) 0 Regions Visited (1) 200 Robots Destroyed (20) 100 Value Destroyed (439) 439 Prototype IDs (1) 20 Alien Tech Used (0) 0 Bonus (-108) -108 TOTAL SCORE: 651 Bonus ------- Friendly Fire -108 Cogmind --------- Core Integrity 0/250 Matter 250/300 Energy 276/280 System Corruption 2% Temperature Cool (8) Movement Treading (160) Location -10/Materials Parts ------- > --- POWER (1) -------- Heavy Ion Engine > --- PROPULSION (2) --- Light Treads Light Treads > --- UTILITY (2) ------ Large Storage Unit Signal Interpreter > --- WEAPON (2) ------- Medium Laser Light Assault Rifle > --- INVENTORY (15) --- Ion Engine Heavy Ion Engine Light Treads Improved Heat Sink Visual Processing Unit Sensor Array Medium Armor Plating Medium Armor Plating Hacking Suite Hacking Suite Hacking Suite Medium Laser Datajack Peak State ------------ > --- POWER ------------ Heavy Ion Engine > --- PROPULSION ------- Light Treads Light Treads > --- UTILITY ---------- Large Storage Unit Signal Interpreter > --- WEAPON ----------- Medium Laser Assault Rifle > --- INVENTORY -------- Ion Engine Light Ion Engine Light Treads Improved Heat Sink Visual Processing Unit Sensor Array Hacking Suite Hacking Suite Hacking Suite Medium Laser Light Assault Rifle Datajack [Rating: 11] Favorites ----------- Power Ion Engine Engine Ion Engine Propulsion Light Treads Treads Light Treads Utility Signal Interpreter Storage Large Storage Unit Processor Signal Interpreter Weapon Assault Rifle Energy Gun Medium Laser Ballistic Gun Assault Rifle Special Melee Weapon Datajack Build | -11 -10 ------- Run | Jun Mat Slots Evolved . | . . Power . | . . Propulsion . | . . Utility . | . . Weapon . | . . Parts Attached 22 | 7 15 Power 4 | 1 3 Engine 4 | 1 3 Core . | . . Reactor . | . . Propulsion 3 | 2 1 Treads 3 | 2 1 Leg . | . . Wheel . | . . Hover . | . . Flight . | . . Utility 4 | 1 3 Device . | . . Storage 2 | 1 1 Processor 2 | . 2 Hackware . | . . Protection . | . . Artifact . | . . Weapon 11 | 3 8 Energy Gun 3 | 1 2 Energy Cannon . | . . Ballistic Gun 6 | 2 4 Ballistic Cannon . | . . Launcher . | . . Special Weapon . | . . Impact Weapon . | . . Slashing Weapon . | . . Piercing Weapon . | . . Special Melee Weapon 2 | . 2 Unidentified Prototypes 1 | . 1 Parts Lost 3 | . 3 Power . | . . Propulsion 1 | . 1 Utility . | . . Weapon 2 | . 2 Highest Loss Streak 2 | . 2 To Critical Strikes . | . . Average Slot Usage (%) 98 | . 98 Engine 13 | . 13 Treads 27 | . 27 Storage 14 | . 14 Processor 13 | . 13 Energy Gun 12 | . 12 Ballistic Gun 14 | . 14 Naked Turns . | . . Heaviest Build 32 | 14 32 Greatest Support 40 | 40 40 Greatest Overweight (x) 1 | . 1 Average Overweight (x) . | . . Largest Inventory Capacity 15 | 8 15 Average Capacity 11 | 7 11 Most Carried 14 | 3 14 Average Carried 6 | 1 6 Final Capacity 15 | 8 15 Final Carried 13 | 2 13 Class Distribution -------------------- 100% | Mutant Dominant Class ---------------- Mutant | -10/Materials Resources | -11 -10 ----------- Run | Jun Mat Matter Collected 589 | 190 399 Remotely . | . . Salvage Created 624 | . 624 Parts 41 | . 41 Haulers Intercepted 2 | . 2 Recyclers Shooed . | . . Parts Field Recycled . | . . Retrieved Matter . | . . Parts Self-Destructed . | . . Prevented . | . . Kills | -11 -10 ------- Run | Jun Mat Combat Hostiles Destroyed 12 | . 12 Guns 12 | . 12 Classes Destroyed 6 | . 6 Builder 1 | . 1 Hauler 2 | . 2 Operator 3 | . 3 Watcher 2 | . 2 Swarmer 3 | . 3 Grunt 9 | . 9 Best Kill Streak 3 | . 3 Combat Bots Only 3 | . 3 Max Kills in Single Turn 1 | . 1 Gunslinging . | . . Exploded . | . . Melee . | . . Uniques/NPCs Destroyed . | . . Combat | -11 -10 -------- Run | Jun Mat Damage Taken 893 | . 893 Core 254 | . 254 Absorbed by Shields . | . . Regen/Repaired (Parts) 53 | . 53 Core Remaining (%) 100 | 100 . Volleys Fired 76 | . 76 Largest 2 | . 2 Hottest 70 | . 70 Shots Fired 131 | . 131 Gun 131 | . 131 Cannon . | . . Launcher . | . . Special . | . . Kinetic 89 | . 89 Thermal 42 | . 42 Explosive . | . . Electromagnetic . | . . Robot Hit Streak 11 | . 11 Robot Miss Streak 3 | . 3 Penetration Max . | . . Secondary Targets . | . . Shots Hit Robots 87 | . 87 Core Hits 37 | . 37 Critical Kills . | . . Critical Parts Destroyed . | . . Critical Strikes 5 | . 5 Burn 5 | . 5 Melee Attacks 1 | . 1 Impact . | . . Slashing . | . . Piercing . | . . Sneak Attacks 1 | . 1 Combat Hostiles . | . . Follow-up Attacks . | . . Damage Inflicted 1076 | . 1076 Guns 1054 | . 1054 Cannons . | . . Explosions 11 | . 11 Melee . | . . Ramming 11 | . 11 Kinetic 703 | . 703 Thermal 351 | . 351 Explosive 11 | . 11 Electromagnetic . | . . Impact . | . . Slashing . | . . Piercing . | . . Highest Corruption 2 | . 2 Average Corruption 2 | . 2 Corruption Purged . | . . Corruption Blocked . | . . Effects 3 | . 3 Matter Fused 1 | . 1 Energy Discharges 2 | . 2 Overload Shots . | . . Overflow Damage . | . . Projectiles . | . . Explosions . | . . Melee . | . . Knockbacks . | . . Impact . | . . Kinetic . | . . Secondary . | . . Self-Inflicted Damage 73 | . 73 Shots 1 | . 1 Rammed 5 | . 5 Targets Rammed 6 | . 6 Kicked . | . . Crushed 1 | . 1 Highest Temperature 216 | . 216 Average Temperature 50 | . 50 Received Heat Transfer 447 | . 447 Siege Activations . | . . Robots Corrupted . | . . Combat Hostiles . | . . Parts Fried . | . . Impact Corruptions . | . . Robots Melted . | . . Combat Hostiles . | . . Parts Melted 2 | . 2 Heat Transferred 1406 | . 1406 Parts Sabotaged . | . . Parts Stolen . | . . Parts Stripped . | . . Power Chain Reactions . | . . Missiles Intercepted . | . . Alert | -11 -10 ------- Run | Jun Mat Peak Influence 169 | . 169 Initial . | . . Average 63 | . 66 Maximum Alert Level . | . . Low Security (%) 100 | 100 100 Level 1 . | . . Level 2 . | . . Level 3 . | . . Level 4 . | . . Level 5 . | . . High Security . | . . Max Security . | . . Squads Dispatched 3 | . 3 Investigation 2 | . 2 Extermination . | . . Reinforcement 1 | . 1 Assault . | . . Garrison . | . . Intercept . | . . Searches Triggered . | . . Construction Impeded . | . . Haulers Reinforced . | . . Active Scanning Responses . | . . Cargo Convoy Interrupts . | . . Stealth | -11 -10 --------- Run | Jun Mat Distress Signals 1 | . 1 Communications Jammed . | . . Distress Signals . | . . Times Spotted 23 | . 23 Peak Tracking Total 4 | . 4 Tactical Retreats 1 | . 1 Traps | -11 -10 ------- Run | Jun Mat Traps Triggered 2 | . 2 Indirectly . | . . Trap Hack Attempts 5 | . 5 Triggered . | . . Disarmed 1 | . 1 Reprogrammed . | . . Reused . | . . Traps Extracted . | . . Installed . | . . Triggered . | . . Machines | -11 -10 ---------- Run | Jun Mat Machines Disabled 2 | . 2 Max in Single Turn 1 | . 1 Machines Repaired . | . . Machines Sabotaged . | . . Overloaded Fab Kills . | . . Hacking | -11 -10 --------- Run | Jun Mat Machines Accessed 7 | . 7 Terminals 6 | . 6 Fabricators . | . . Repair Stations 1 | . 1 Recycling Units . | . . Scanalyzers . | . . Garrison Access . | . . Total Hacks 14 | . 14 Successful 6 | . 6 Failed 8 | . 8 Catastrophic 2 | . 2 Database Lockouts . | . . Manual 12 | . 12 Terminals 12 | . 12 Fabricators . | . . Repair Stations 2 | . 2 Recycling Units . | . . Scanalyzers . | . . Garrison Access . | . . Terminal Hacks 2 | . 2 Terminal Index 1 | . 1 Zone Layout 1 | . 1 Fabricator Hacks . | . . Repair Station Hacks 2 | . 2 Scan Component 1 | . 1 Repair 1 | . 1 Recycling Unit Hacks . | . . Scanalyzer . | . . Garrison Access Hacks . | . . Unauthorized Hacks 2 | . 2 Terminals 2 | . 2 Assimilate 2 | . 2 Fabricators . | . . Repair Stations . | . . Recycling Units . | . . Scanalyzers . | . . Garrison Access . | . . Data Cores Recovered . | . . Used . | . . Hacking Detections 7 | . 7 Full Trace Events 1 | . 1 Feedback Events . | . . Feedback Blocked . | . . Robot Schematics Acquired . | . . Robots Built . | . . Authchips . | . . Time . | . . Total Robot Build Rating . | . . Part Schematics Acquired . | . . Parts Built . | . . Authchips . | . . Time . | . . Total Part Build Rating . | . . Parts Repaired 1 | . 1 Time 13 | . 13 Parts Recycled . | . . Recycled Matter . | . . Retrieved Matter . | . . Retrieved Components . | . . Parts Scanalyzed . | . . Part Schematics Acquired . | . . Parts Damaged . | . . Bothacking | -11 -10 ------------ Run | Jun Mat Used RIF Installer . | . . Robots Hacked 1 | . 1 Non-combat 1 | . 1 Combat . | . . Robot Hacks Applied 1 | . 1 parse_system 1 | . 1 Relay Couplers Released . | . . Fabnet Peak Effective % . | . . Robots Rewired . | . . Allies Hacked . | . . Hacks Repelled . | . . Allies | -11 -10 -------- Run | Jun Mat Total Allies 2 | . 2 Largest Group 1 | . 1 Highest-Rated Group 10 | . 10 Highest-Rated Ally 10 | . 10 Total Orders 3 | . 3 STAY 3 | . 3 Ally Attacks . | . . Total Damage . | . . Kills . | . . Allies Corrupted . | . . Allies Melted . | . . Intel | -11 -10 ------- Run | Jun Mat Robot Analysis Total . | . . Derelict Logs Recovered . | . . Drone Launches . | . . Drone Recoveries . | . . Exploration | -11 -10 ------------- Run | Jun Mat Turns Passed 1724 | 75 1649 Spaces Moved 840 | 43 797 Core 7 | 7 . Treads 833 | 36 797 Legs . | . . Wheels . | . . Hover . | . . Flight . | . . Fastest Speed 50 | 50 160 Average Speed 161 | 142 162 Slowest Speed 240 | 160 240 Overloaded Moves . | . . Propulsion Burnouts . | . . Robots Hopped . | . . Cave-ins Triggered . | . . Exploration Rate (%) 41 | 4 78 Regions Visited 1 Branch Regions . Pre-discovered Areas . | . . Known Exits Taken . | . . Unknown Exits Taken 1 | 1 . Scrap Searched . | . . Spaces Dug . | . . Terrain Destroyed 16 | . 16 Melee . | . . Projectile . | . . AOE 16 | . 16 Terrain Rammed . | . . Walls Destroyed . | . . Machines Disabled . | . . Actions | -11 -10 --------- Run | Jun Mat Total 1073 | 57 1016 Wait 93 | . 93 Move 839 | 42 797 Hop . | . . Pick Up 28 | 8 20 Fast Attach . | . . Attach 12 | 6 6 Detach . | . . Swap 10 | 1 9 Drop 3 | . 3 Fire 76 | . 76 Melee 1 | . 1 Ram . | . . Kick . | . . Crush 6 | . 6 Escape Stasis . | . . Rewire . | . . Trap 5 | . 5 Miscellaneous . | . . Route ------- -11/Junkyard -10/Materials (discovered 4 exits: *Mat x2 / *Min x2) History --------- Turn | Location | Event 13 | -11/Junkyard | Discovered new exit (range 14) 76 | -11/Junkyard | Entered Materials 277 | -10/Materials | Discovered new exit (range 3) 303 | -10/Materials | Build established: Mutant 329 | -10/Materials | Identified exit to Materials 786 | -10/Materials | Discovered new exit (range 15) 881 | -10/Materials | Identified exit to Mines 1007 | -10/Materials | Discovered exit to Mines (range 11) 1034 | -10/Materials | Discovered exit to Materials (range 9) 1175 | -10/Materials | Core integrity fell below 50% 1218 | -10/Materials | Repaired Ion Engine 1683 | -10/Materials | Core integrity fell below 20% 1725 | -10/Materials | Destroyed by G-34 Mercenary with Small Laser Last Messages --------------- 01402_ Connecting with Terminal... 01463_ R-06 Scavenger collects Ion Engine. 01482_ Acquired Prototype Engine. 01483_ Identified Hvy. Ion Engine. 01483_ Malfunction: System corrupted (+2). 01484_ System corrupted: Matter fused (-5). 01484_ Dropped Faulty Hvy. Ion Engine. 01486_ Acquired Hvy. Ion Engine. 01488_ Dropped Lgt. Ion Engine. 01494_ Acquired Hvy. Ion Engine. 01576_ Acquired Med. Armor Plating. 01624_ System corrupted: Energy discharge (-84). 01642_ System corrupted: Energy discharge (-109). 01676_ Attempting to reprogram Alarm Trap. 01680_ Alarm Trap disarmed. 01682_ Triggered Alarm Trap. 01682_ An alarm sounds. 01682_ ALERT: Alarm triggered, dispatching investigation squad. 01692_ R-06 Scavenger collects Weight Redist. System. 01700_ Assault Rifle destroyed. Map ----- +----------------------------------------------------+ | ????????????????????????" ??????? | | ????????????????????????" ???????? | | ???????????????????????? ???????? | | ?????????????????????###+###?????? | | ??????????????######## #?????? | | ??????????????# # #?????? | | ??????????????#! """ # ####?????? | | ??????????????# "T" # ######???? | | ??????????????# + ##"T"##### | | ###+########### [%# # # | | ? # =# + % # | | ?? # # # # | | ??? """ # %= # # """ # | | ????# """ ####+### + """""# | | ????# """ % * # """""# | | ????# # """""# | | ????# #####+##### """ ? | | ????# #?????????# ?? | | ????# []!#?????????#########? | | ????# ]! #??????????????????? | | ##### ]! #??????????????????? | | ## #??????????????????? | | ## #?????#######???? # | | ## %% ####### #??! # | | # g # # | | ## r g @/ """ # | | ## g w # """ # | | ## ####### # """ # | | + ###################? | | ## # #?????? | | ##### # """ """ #?????? | | #?# # # """"""""" #?????? | | #?# # # """"" " #?????? | | ##### ! # #?????? | | % !! #######+######?????? | | ! #???????? | | < #???????? | | ##### #???????? | | #???### ############## #???????? | | ??????# #??# T ## #???????? | | ??##### #??# ## #???????? | | ??#]] #??# !## #???????? | | ??#]] #??# / ## #???????? | | ??# * #??# ## #???????? | | ??# #### """ ## ######??? | | ??#[[ + """ ## ## ??? | | ??#[[ #### """ ## ## ??? | | ####### #??# ## ## ??? | | #?## ##?#####+##### ## ??? | | #?# ##### ## ??? | +----------------------------------------------------+ Best States ------------- Heat Dissipation 25 Energy Generation 14 Energy Capacity 280 Matter Stores 300 Matter Capacity 300 Sight Range 16 Terrain Scan Density 10 Evasion (%) 40 Targeting Accuracy 6 Recoil Reduction 2 Item Schematics ----------------- None Robot Schematics ------------------ None Fabricated ------------ Nothing Alien Tech Used ----------------- None Achievements -------------- None Challenges ------------ None Game ------ Seed TransdimensionalFlightMatter Manual? 0 Play Time 00:15:57 Cumulative 29.8 hours Start 2023.03.23 @ 18:25:13 End 2023.03.23 @ 18:43:20 Sessions 1 Manual Loads 0 Difficulty Rogue Special Mode None Game No. 41 Rogue 41 Adventurer 0 Explorer 0 Win Type - Total 0 Types 0/0/0/0/0/0/0/0/0 Lore% 29 Gallery% 31 Achievement% 30 Wizard Run 0 Options --------- ASCII 0 Keyboard 0 Movement Arrows Keybinds 0 Fullscreen 1 Font 12/Smallcaps Map View 83x54 Tactical HUD 1 Map Filters NONE Filters NONE Steam 1 RUN: dcb251ac-2821-49b6-9072-e9ca7d4c11fa